bitfinex/quotes_BTCUSD_20241025
["timestamp","ask_amount","ask_price","bid_price","bid_amount"]
[1729897212319,0.001646,66636.0,66635.0,1.0681346]
[1729897212525,0.001646,66636.0,66635.0,1.0661346]
[1729897212771,0.001646,66636.0,66635.0,1.8485346]
[1729897213022,0.166715,66636.0,66635.0,0.59060235]
[1729897213250,0.016646,66636.0,66635.0,0.59060235]
[1729897213486,0.01535137,66636.0,66635.0,0.59060235]
[1729897213724,0.01535137,66636.0,66635.0,0.67594893]
[1729897213968,0.01535137,66636.0,66635.0,0.97652374]
[1729897214221,0.001646,66636.0,66635.0,0.97652374]
[1729897215347,0.02193356,66661.0,66635.0,0.97652374]
[1729897215348,0.02192441,66662.0,66661.0,0.150012]
[1729897215559,0.001644,66666.0,66665.0,0.26286341]
[1729897215766,0.001644,66666.0,66661.0,0.16550501]
[1729897215767,0.001644,66666.0,66661.0,0.0150012]
[1729897215988,0.001644,66666.0,66655.0,0.26286341]
[1729897216214,0.005,66660.0,66657.0,0.22484036]
[1729897216655,0.155016,66660.0,66657.0,0.22484036]
[1729897216921,0.157016,66660.0,66657.0,0.22484036]
[1729897217152,0.007,66660.0,66657.0,0.22484036]
[1729897217389,0.005,66660.0,66650.0,0.22484036]
[1729897217637,0.005,66660.0,66651.0,0.02248404]
[1729897218985,0.005,66660.0,66650.0,0.37534417]
[1729897218986,0.005,66660.0,66650.0,0.37282821]
[1729897219636,0.005,66660.0,66650.0,0.63569162]
[1729897219861,0.005,66660.0,66650.0,0.93576362]
[1729897220111,0.005,66660.0,66650.0,1.08579962]
[1729897220378,0.005,66660.0,66651.0,0.13858866]
[1729897220837,0.005,66660.0,66638.0,0.300126]
[1729897220838,0.005,66655.0,66638.0,0.300126]
[1729897221061,0.300035,66659.0,66629.0,0.00541066]
[1729897221062,0.005,66647.0,66645.0,0.22484036]
[1729897221292,0.005,66647.0,66636.0,0.22484036]
[1729897221293,0.005,66639.0,66636.0,0.22484036]
[1729897221548,0.379576,66650.0,66636.0,0.22484036]
[1729897221549,0.005,66637.0,66636.0,0.22484036]
[1729897221814,0.20109271,66649.0,66636.0,0.22484036]
[1729897221815,0.005,66638.0,66636.0,0.22484036]
[1729897222092,0.005,66638.0,66637.0,0.12283831]
[1729897222365,0.005,66644.0,66638.0,0.150063]
[1729897222805,0.005,66644.0,66637.0,0.12283831]
[1729897223063,0.002,66651.0,66639.0,0.26286341]
[1729897223274,0.002,66651.0,66644.0,0.26286341]
[1729897223487,0.002,66651.0,66645.0,0.300097]
[1729897223711,0.002,66651.0,66644.0,0.15005]
[1729897223914,0.002,66651.0,66648.0,0.150041]
[1729897224119,0.005,66652.0,66648.0,0.150041]
[1729897224334,0.005,66659.0,66650.0,0.150037]
[1729897224567,0.005,66659.0,66650.0,0.15050381]
[1729897224997,0.005,66659.0,66650.0,0.30053981]
[1729897225206,0.005,66659.0,66651.0,0.150035]
[1729897225419,0.005,66659.0,66652.0,0.06681239]
[1729897226042,0.002,66660.0,66650.0,0.15050381]
[1729897226043,0.005,66660.0,66654.0,0.150027]
[1729897226271,0.005,66660.0,66655.0,0.150024]
[1729897226489,0.02358437,66666.0,66658.0,0.26286341]
[1729897226699,0.001644,66666.0,66663.0,0.41286941]
[1729897226942,0.001644,66666.0,66665.0,0.150003]
[1729897227149,0.001644,66666.0,66665.0,0.30050681]
[1729897228032,0.001644,66666.0,66665.0,0.52834649]
[1729897228247,0.005,66686.0,66674.0,0.26286341]
[1729897228459,0.01370962,66678.0,66677.0,0.299953]
[1729897228668,0.005,66686.0,66677.0,0.45345598]
[1729897228894,0.01370962,66685.0,66678.0,0.15297315]
[1729897229127,0.299874,66695.0,66678.0,0.15297315]
[1729897229128,0.00939009,66701.0,66681.0,0.299935]
[1729897229345,0.00939009,66701.0,66679.0,0.2642]
[1729897229346,0.001644,66702.0,66694.0,0.26286341]
[1729897229595,0.005,66700.0,66686.0,0.26286341]
[1729897229809,0.005,66700.0,66691.0,0.22484036]
[1729897230017,0.005,66700.0,66691.0,0.37534417]
[1729897230246,0.005,66700.0,66692.0,0.149941]
[1729897230497,0.005,66700.0,66691.0,0.37534417]
[1729897230498,0.005,66700.0,66693.0,0.06749714]
[1729897230710,0.005,66700.0,66691.0,0.52528817]
[1729897230711,0.005,66700.0,66691.0,0.15050381]
[1729897230921,0.005,66700.0,66692.0,0.22484036]
[1729897231618,0.002,66692.0,66672.0,0.01]
[1729897231818,0.002,66691.0,66684.0,0.17298785]
[1729897232028,0.005,66689.0,66684.0,0.02248404]
[1729897232240,0.007,66687.0,66674.0,0.26286341]
[1729897232447,0.005,66687.0,66677.0,0.299953]
[1729897232717,0.002,66685.0,66678.0,0.149972]
[1729897232947,0.007,66687.0,66679.0,0.14997]
[1729897233174,0.007,66687.0,66678.0,0.299949]
[1729897233175,0.005,66687.0,66678.0,0.299949]
[1729897233463,0.005,66687.0,66680.0,0.149969]
[1729897233705,0.007,66687.0,66680.0,0.149969]
[1729897234449,0.007,66687.0,66674.0,0.56282841]
[1729897234450,0.002,66682.0,66681.0,0.149966]
[1729897234699,0.002,66682.0,66681.0,0.194957]
[1729897235158,0.002,66684.0,66681.0,0.044991]
[1729897236008,0.002,66684.0,66681.0,0.194958]
[1729897236425,0.002,66684.0,66683.0,0.149963]
[1729897236645,0.002,66685.0,66684.0,0.149961]
[1729897236855,0.002,66687.0,66684.0,0.22974031]
[1729897237096,0.002,66686.0,66683.0,0.299926]
[1729897237369,0.007,66693.0,66684.0,0.22484036]
[1729897237587,0.005,66692.0,66685.0,0.149957]
[1729897237818,0.005,66692.0,66685.0,0.149958]
[1729897238039,0.002,66688.0,66685.0,0.149958]
[1729897238252,0.002,66689.0,66686.0,0.21449288]
[1729897238465,0.002,66689.0,66686.0,0.149955]
[1729897239132,0.02393865,66688.0,66686.0,0.149955]
[1729897239345,0.02193865,66687.0,66686.0,0.149955]
[1729897239568,0.02393865,66687.0,66684.0,0.30046381]
[1729897239778,0.02193865,66686.0,66685.0,0.04962448]
[1729897240055,0.02193865,66686.0,66674.0,0.299963]
[1729897240056,0.002,66681.0,66669.0,0.299986]
[1729897240261,0.002,66681.0,66676.0,0.22484036]
[1729897240262,0.02693865,66681.0,66676.0,0.22484036]
[1729897240475,0.02393865,66681.0,66678.0,0.149974]
[1729897240676,0.02393865,66681.0,66676.0,0.22484036]
[1729897240910,0.03332397,66681.0,66678.0,0.149974]
[1729897241118,0.0811,66688.0,66680.0,0.21888325]
[1729897241344,0.02194058,66681.0,66680.0,0.21834944]
[1729897241560,0.04065344,66681.0,66680.0,0.00082]
[1729897241766,0.20200706,66681.0,66680.0,0.00082]
[1729897242187,0.22486183,66681.0,66680.0,0.00082]
[1729897242388,0.20200706,66681.0,66680.0,0.00082]
[1729897243100,0.43269638,66681.0,66680.0,0.00082]
[1729897243348,0.54728039,66681.0,66680.0,0.00082]
[1729897244302,0.56100136,66681.0,66680.0,0.00082]
[1729897244523,0.54728039,66681.0,66680.0,0.00082]
[1729897244756,0.56100134,66681.0,66680.0,0.00082]
[1729897245015,0.54728039,66681.0,66680.0,0.00082]
[1729897245289,0.5610084,66681.0,66680.0,0.00082]
[1729897246262,0.76210111,66681.0,66680.0,0.00082]
[1729897247008,0.2778303,66681.0,66680.0,0.00082]
[1729897247236,0.41407645,66681.0,66680.0,0.00082]
[1729897247463,0.26410945,66681.0,66680.0,0.00082]
[1729897247974,0.40309977,66681.0,66680.0,0.00082]
[1729897248200,0.002,66671.0,66670.0,0.149991]
[1729897248448,0.02511861,66671.0,66670.0,0.149991]
[1729897248697,0.04708811,66671.0,66668.0,0.22484036]
[1729897248945,0.002,66669.0,66668.0,0.37534417]
[1729897249175,0.002,66670.0,66669.0,0.06753532]
[1729897249406,0.04709474,66670.0,66669.0,0.06753532]
[1729897249631,0.03770679,66670.0,66669.0,0.06753532]
[1729897249858,0.002,66669.0,66665.0,0.150002]
[1729897250088,0.04509474,66668.0,66665.0,0.150002]
[1729897250330,0.03570679,66667.0,66665.0,0.150002]
[1729897250562,0.002,66667.0,66666.0,0.06748574]
[1729897250789,0.03771989,66667.0,66666.0,0.06748574]
[1729897251007,0.03571989,66667.0,66666.0,0.21748674]
[1729897251239,0.03571989,66667.0,66666.0,0.06748574]
[1729897251720,0.03571989,66667.0,66655.0,0.56291141]
[1729897251721,0.005,66664.0,66620.0,0.1046161]
[1729897251949,0.5634833,66667.0,66620.0,0.1046161]
[1729897251950,0.005,66641.0,66640.0,0.22484036]
[1729897252191,0.20216484,66641.0,66640.0,0.22484036]
[1729897252449,0.47600743,66641.0,66640.0,0.22484036]
[1729897253197,0.152069,66636.0,66633.0,0.22484036]
[1729897253198,0.002,66636.0,66633.0,0.22484036]
[1729897253428,0.03771989,66636.0,66633.0,0.22484036]
[1729897254414,0.04271989,66636.0,66633.0,0.22484036]
[1729897254679,0.04271989,66636.0,66619.0,0.22484036]
[1729897254680,0.5367523,66636.0,66619.0,0.22484036]
[1729897254905,0.55961015,66636.0,66626.0,0.22484036]
[1729897255164,0.5571044,66636.0,66626.0,0.22484036]
[1729897255394,0.50103241,66636.0,66626.0,0.22484036]
[1729897255619,0.28476507,66636.0,66626.0,0.22484036]
[1729897255842,0.29662053,66636.0,66626.0,0.22484036]
[1729897256071,0.27380112,66636.0,66626.0,0.22484036]
[1729897256526,0.19270112,66636.0,66626.0,0.22484036]
[1729897257093,0.17077366,66636.0,66626.0,0.22484036]
[1729897257788,0.02070466,66636.0,66626.0,0.22484036]
[1729897258033,0.01570466,66636.0,66626.0,0.37493036]
[1729897258279,0.02070466,66636.0,66626.0,0.22484036]
[1729897258540,0.157069,66636.0,66626.0,0.22484036]
[1729897258815,0.17073959,66636.0,66626.0,0.22484036]
[1729897259073,0.25096509,66636.0,66626.0,0.22484036]
[1729897259344,0.25096509,66636.0,66619.0,0.22484036]
[1729897259345,0.63943456,66636.0,66619.0,0.22484036]
[1729897259576,0.90313456,66636.0,66626.0,0.22484036]
[1729897260820,1.42737982,66636.0,66626.0,0.22484036]
[1729897261050,1.17344898,66636.0,66626.0,0.22484036]
[1729897261310,1.43831239,66636.0,66635.0,0.51332235]
[1729897261576,1.43631239,66636.0,66635.0,0.51332235]
[1729897261864,0.172089,66627.0,66626.0,0.22484036]
[1729897262094,0.172089,66627.0,66619.0,0.22484036]
[1729897262095,0.172105,66620.0,66619.0,0.22484036]
[1729897262356,0.6073226,66620.0,66619.0,0.22484036]
[1729897262586,0.62097909,66620.0,66619.0,0.22484036]
[1729897262866,0.62097909,66620.0,66616.0,0.000142]
[1729897262867,0.422109,66618.0,66616.0,0.000142]
[1729897263092,0.61903342,66618.0,66616.0,0.000142]
[1729897263596,0.60811968,66618.0,66616.0,0.000142]
[1729897263824,0.6190235,66618.0,66616.0,0.000142]
[1729897264501,0.60811968,66618.0,66616.0,0.000142]
[1729897264936,0.75089798,66618.0,66616.0,0.000142]
[1729897265376,0.76029458,66618.0,66616.0,0.000142]
[1729897265595,0.71539111,66618.0,66616.0,0.000142]
[1729897265815,0.75079838,66618.0,66616.0,0.000142]
[1729897266254,0.76019682,66618.0,66616.0,0.000142]
[1729897266702,0.96128953,66618.0,66616.0,0.000142]
[1729897266946,0.007,66603.0,66602.0,0.000849]
[1729897267193,0.5373577,66603.0,66602.0,0.000849]
[1729897267424,0.55914679,66603.0,66602.0,0.000849]
[1729897268363,0.422147,66601.0,66598.0,0.000849]
[1729897268591,1.1794729,66601.0,66598.0,0.000849]
[1729897268818,1.18881733,66601.0,66598.0,0.000849]
[1729897269986,0.162168,66592.0,66591.0,0.0175053]
[1729897270226,0.35801924,66592.0,66591.0,0.0175053]
[1729897270465,0.35801924,66592.0,66567.0,0.300445]
[1729897270466,0.438104,66576.0,66572.0,0.22484036]
[1729897270693,0.68394449,66576.0,66572.0,0.22484036]
[1729897271150,0.42568772,66576.0,66572.0,0.22484036]
[1729897271367,0.5585483,66576.0,66558.0,0.22484036]
[1729897271587,0.59119153,66576.0,66558.0,0.22484036]
[1729897271808,0.5685483,66576.0,66558.0,0.22484036]
[1729897272077,0.56851271,66576.0,66558.0,0.22484036]
[1729897272311,0.42010541,66559.0,66558.0,0.22484036]
[1729897272555,0.61532141,66559.0,66558.0,0.22484036]
[1729897273009,0.002,66552.0,66551.0,0.22484036]
[1729897273242,0.18756637,66552.0,66551.0,0.22484036]
[1729897273476,0.18756637,66552.0,66550.0,0.000849]
[1729897273477,0.15726,66551.0,66550.0,0.000849]
[1729897273708,0.34307218,66551.0,66550.0,0.000849]
[1729897273933,0.448505,66551.0,66550.0,0.000849]
[1729897274163,0.20197219,66551.0,66550.0,0.000849]
[1729897275270,0.357476,66551.0,66550.0,0.000849]
[1729897275498,0.352476,66551.0,66550.0,0.000849]
[1729897276005,0.20197219,66551.0,66550.0,0.000849]
[1729897276229,0.07428626,66551.0,66550.0,0.000849]
[1729897276450,0.05171219,66551.0,66550.0,0.000849]
[1729897276894,0.04471219,66551.0,66550.0,0.41397441]
[1729897277116,0.04471219,66551.0,66550.0,0.151111]
[1729897277117,0.03530837,66551.0,66550.0,0.151111]
[1729897277557,0.03530837,66551.0,66550.0,0.000849]
[1729897277780,0.03530837,66551.0,66550.0,0.151111]
[1729897278023,0.03530837,66551.0,66550.0,0.000849]
[1729897278243,0.03530837,66551.0,66550.0,0.151111]
[1729897278506,0.03530837,66551.0,66550.0,0.71312726]
[1729897278735,0.01358014,66551.0,66550.0,0.71312726]
[1729897278957,0.005,66564.0,66563.0,0.150233]
[1729897279175,0.005,66564.0,66551.0,0.1914]
[1729897279176,0.005,66565.0,66564.0,0.150231]
[1729897279621,0.04469244,66565.0,66564.0,0.41309441]
[1729897279886,0.03528976,66565.0,66564.0,0.53728235]
[1729897280352,0.04469193,66565.0,66564.0,0.150231]
[1729897281320,0.04469169,66565.0,66564.0,0.150231]
[1729897282709,0.04669169,66565.0,66564.0,0.150231]
[1729897282934,0.04469169,66565.0,66564.0,0.150231]
[1729897283387,0.04469169,66565.0,66564.0,0.25163444]
[1729897283673,0.04469169,66565.0,66564.0,0.51449785]
[1729897284121,0.04469169,66565.0,66564.0,0.150231]
[1729897284355,0.04469169,66565.0,66557.0,0.300491]
[1729897284356,0.007,66555.0,66550.0,0.000849]
[1729897284577,0.0225985,66566.0,66550.0,0.000849]
[1729897284578,0.17226,66551.0,66550.0,0.000849]
[1729897284806,0.007,66531.0,66530.0,0.22484036]
[1729897285043,0.04969169,66531.0,66530.0,0.37514836]
[1729897285270,0.04969169,66531.0,66530.0,0.150308]
[1729897285495,0.04469169,66531.0,66530.0,0.150308]
[1729897285721,0.04469169,66531.0,66530.0,0.34590501]
[1729897285933,0.03528976,66531.0,66530.0,0.150308]
[1729897288437,0.03528976,66531.0,66529.0,0.26286341]
[1729897288655,0.26013012,66530.0,66529.0,0.26286341]
[1729897288868,0.04469634,66530.0,66528.0,0.150311]
[1729897289082,0.04469688,66529.0,66528.0,0.150311]
[1729897289518,0.04969688,66529.0,66523.0,0.150323]
[1729897289727,0.04969688,66529.0,66522.0,0.300648]
[1729897289728,0.002,66526.0,66522.0,0.300648]
[1729897289949,0.04469688,66525.0,66524.0,0.150321]
[1729897291056,0.005,66517.0,66498.0,0.0005]
[1729897291418,0.04469688,66516.0,66514.0,0.150342]
[1729897291521,0.005,66515.0,66511.0,0.150349]
[1729897291745,0.002,66513.0,66506.0,0.300721]
[1729897291959,0.04469688,66512.0,66511.0,0.150349]
[1729897292175,0.04469688,66512.0,66507.0,0.300719]
[1729897292401,0.005,66514.0,66512.0,0.150348]
[1729897292624,0.03548459,66513.0,66510.0,0.300706]
[1729897292865,0.22484036,66514.0,66513.0,0.150346]
[1729897293086,0.25608691,66514.0,66513.0,0.150346]
[1729897293325,0.03124655,66514.0,66513.0,0.150346]
[1729897293543,0.04489436,66514.0,66513.0,0.150346]
[1729897293990,0.03548516,66514.0,66513.0,0.150346]
[1729897294235,0.04048516,66514.0,66509.0,0.175355]
[1729897294452,0.04489473,66513.0,66512.0,0.150348]
[1729897294679,0.04489473,66513.0,66509.0,0.025]
[1729897294680,0.04489473,66513.0,66510.0,0.300704]
[1729897294896,0.24758748,66524.0,66509.0,0.025]
[1729897294897,0.02774651,66511.0,66509.0,0.025]
[1729897295112,0.04489473,66510.0,66509.0,0.025]
[1729897295337,0.04489473,66510.0,66509.0,0.175355]
[1729897296453,0.005,66516.0,66509.0,0.175355]
[1729897296454,0.005,66516.0,66515.0,0.150342]
[1729897296906,0.005,66516.0,66513.0,0.150345]
[1729897296907,0.04991649,66516.0,66513.0,0.150345]
[1729897297128,0.04991649,66516.0,66511.0,0.300702]
[1729897297129,0.02306492,66515.0,66512.0,0.300697]
[1729897297352,0.04491531,66514.0,66513.0,0.150346]
[1729897298730,0.06768915,66514.0,66513.0,0.30084981]
[1729897298967,0.04491531,66514.0,66513.0,0.30084981]
[1729897300661,0.04491531,66514.0,66513.0,0.30885649]
[1729897300892,0.04491531,66514.0,66513.0,0.31084981]
[1729897301118,0.03550597,66514.0,66513.0,0.31084981]
[1729897301341,0.03550597,66514.0,66513.0,0.43344333]
[1729897301342,0.04491338,66514.0,66513.0,0.43344333]
[1729897301564,0.03550597,66514.0,66513.0,0.43344333]
[1729897302018,0.04491334,66514.0,66513.0,0.43344333]
[1729897302240,0.04491334,66514.0,66513.0,0.42344333]
[1729897302462,0.04491334,66514.0,66513.0,0.30084981]
[1729897302934,0.06768718,66514.0,66513.0,0.30084981]
[1729897303573,0.04496959,66514.0,66513.0,0.15050381]
[1729897303792,0.06776511,66514.0,66513.0,0.30084981]
[1729897304018,0.04496959,66514.0,66513.0,0.150346]
[1729897304949,0.005,66511.0,66509.0,0.025822]
[1729897305164,0.04496959,66510.0,66509.0,0.176176]
[1729897305872,0.157355,66509.0,66508.0,0.01694023]
[1729897306089,0.36376272,66509.0,66508.0,0.01694023]
[1729897306752,0.51426653,66509.0,66508.0,0.01694023]
[1729897306939,0.36371991,66509.0,66508.0,0.01694023]
[1729897307386,0.13785815,66509.0,66508.0,0.01694023]
[1729897307604,0.04992985,66509.0,66508.0,0.01694023]
[1729897307750,0.04492985,66509.0,66508.0,0.01694023]
[1729897308371,0.04692985,66509.0,66508.0,0.01694023]
[1729897309824,0.04492985,66509.0,66508.0,0.01776223]
[1729897310728,0.03992985,66509.0,66508.0,0.01776223]
[1729897310962,0.03992985,66509.0,66508.0,0.16811923]
[1729897311630,0.03992985,66509.0,66508.0,0.01776223]
[1729897312098,0.19728485,66509.0,66508.0,0.01776223]
[1729897312330,0.9037708,66509.0,66508.0,0.01776223]
[1729897312574,0.92128902,66509.0,66508.0,0.01776223]
[1729897313230,0.57734068,66509.0,66508.0,0.01776223]
[1729897313456,0.84520409,66509.0,66508.0,0.01776223]
[1729897313676,1.03960409,66509.0,66508.0,0.01776223]
[1729897313888,1.00253853,66509.0,66508.0,0.01776223]
[1729897314098,1.03102254,66509.0,66508.0,0.01776223]
[1729897314575,1.18152635,66509.0,66508.0,0.01776223]
[1729897315453,0.61265532,66509.0,66508.0,0.01776223]
[1729897315667,0.4007267,66509.0,66508.0,0.01776223]
[1729897316952,0.2503717,66509.0,66508.0,0.01776223]
[1729897317155,0.23941631,66509.0,66508.0,0.01776223]
[1729897317814,0.38980233,66509.0,66508.0,0.01776223]
[1729897318000,0.40077374,66509.0,66508.0,0.01776223]
[1729897318350,0.67573357,66509.0,66508.0,0.01776223]
[1729897318584,0.68073357,66509.0,66508.0,0.01776223]
[1729897318797,0.162362,66506.0,66505.0,0.001]
[1729897319002,0.81914796,66506.0,66505.0,0.001]
[1729897319239,0.84670508,66506.0,66505.0,0.001]
[1729897319458,1.16170356,66506.0,66505.0,0.001]
[1729897319928,1.16170356,66506.0,66483.0,0.00085]
[1729897319929,0.005,66484.0,66483.0,0.00085]
[1729897320157,0.005,66484.0,66457.0,0.3009981]
[1729897320158,0.005,66463.0,66458.0,0.24234566]
[1729897320382,0.150466,66460.0,66459.0,0.22484036]
[1729897320612,0.150466,66460.0,66458.0,0.0175053]
[1729897320613,0.005,66459.0,66458.0,0.0125053]
[1729897320825,0.05206981,66459.0,66458.0,0.0125053]
[1729897321284,0.61590503,66459.0,66458.0,0.0125053]
[1729897321513,0.61590503,66459.0,66450.0,0.00132]
[1729897321514,0.160486,66451.0,66450.0,0.00132]
[1729897321745,0.20057362,66451.0,66450.0,0.00132]
[1729897322172,0.35605962,66451.0,66450.0,0.00132]
[1729897322660,0.05006981,66451.0,66450.0,0.00132]
[1729897322870,0.05006981,66451.0,66435.0,0.00301065]
[1729897322871,0.005,66442.0,66436.0,0.29906]
[1729897323090,0.26991017,66441.0,66440.0,0.15051]
[1729897323318,0.005,66438.0,66435.0,0.150522]
[1729897323558,0.03565836,66437.0,66434.0,0.150524]
[1729897323785,0.002,66454.0,66434.0,0.150524]
[1729897323786,0.22984036,66448.0,66435.0,0.20896407]
[1729897324001,0.22984036,66448.0,66447.0,0.150495]
[1729897324002,0.22484036,66448.0,66447.0,0.150495]
[1729897324237,0.26030254,66448.0,66447.0,0.30099881]
[1729897324451,0.26030254,66448.0,66447.0,0.38798473]
[1729897324452,0.01364005,66448.0,66447.0,0.38798473]
[1729897325132,0.005,66445.0,66432.0,0.055]
[1729897325346,0.03545124,66444.0,66439.0,0.301023]
[1729897325561,0.005,66445.0,66440.0,0.150511]
[1729897325562,0.03541708,66443.0,66440.0,0.150511]
[1729897325781,0.22484036,66453.0,66433.0,0.05301003]
[1729897325782,0.005,66441.0,66433.0,0.05301003]
[1729897326005,0.03541708,66440.0,66434.0,0.16159561]
[1729897326232,0.03541388,66439.0,66438.0,0.150516]
[1729897326674,0.01362072,66439.0,66438.0,0.150516]
[1729897326891,0.01362072,66439.0,66438.0,0.2732208]
[1729897327112,0.005,66446.0,66442.0,0.150506]
[1729897327334,0.005,66446.0,66434.0,0.16159561]
[1729897327335,0.005,66435.0,66432.0,0.05]
[1729897327585,0.03537553,66434.0,66433.0,0.200527]
[1729897327790,0.03537553,66434.0,66433.0,0.43658851]
[1729897328013,0.01361183,66434.0,66433.0,0.43658851]
[1729897328232,0.01361183,66434.0,66433.0,0.05]
[1729897328484,0.04036672,66434.0,66433.0,0.05]
[1729897328697,0.04978716,66434.0,66433.0,0.05]
[1729897329338,0.04478716,66434.0,66433.0,0.05]
[1729897329760,0.04978716,66434.0,66433.0,0.05]
[1729897330257,0.04978716,66434.0,66433.0,0.200527]
[1729897330258,0.04478716,66434.0,66433.0,0.200527]
[1729897330472,0.03536672,66434.0,66433.0,0.37637511]
[1729897330685,0.03535344,66434.0,66433.0,0.37637511]
[1729897330900,0.01361183,66434.0,66433.0,0.37637511]
[1729897331763,0.03536066,66434.0,66433.0,0.37637511]
[1729897332174,0.03536066,66434.0,66433.0,0.200527]
[1729897332392,0.04478009,66434.0,66433.0,0.200527]
[1729897333233,0.03536066,66434.0,66433.0,0.200527]
[1729897333460,0.04478024,66434.0,66433.0,0.35404109]
[1729897333683,0.01361183,66434.0,66433.0,0.62973081]
[1729897333907,0.24751295,66449.0,66448.0,0.150493]
[1729897334118,0.26962869,66449.0,66448.0,0.150493]
[1729897334570,0.26962869,66449.0,66448.0,0.41335641]
[1729897334571,0.04478833,66449.0,66448.0,0.41335641]
[1729897335016,0.04478833,66449.0,66448.0,0.56386022]
[1729897335269,0.03537057,66449.0,66448.0,0.56386022]
[1729897335516,0.03537057,66449.0,66448.0,0.42858263]
[1729897335745,0.22484036,66465.0,66464.0,0.150457]
[1729897335746,0.24751295,66465.0,66464.0,0.150457]
[1729897335959,0.26966507,66465.0,66464.0,0.41332041]
[1729897336188,0.03540877,66465.0,66464.0,0.66534076]
[1729897336414,0.01361876,66465.0,66464.0,0.66534076]
[1729897336616,0.01361876,66465.0,66464.0,0.94804076]
[1729897336841,0.22484036,66481.0,66480.0,0.150421]
[1729897336842,0.24751295,66481.0,66480.0,0.150421]
[1729897337058,0.002,66475.0,66472.0,0.150438]
[1729897337268,0.29735194,66481.0,66466.0,0.005]
[1729897337269,0.04483723,66474.0,66466.0,0.005]
[1729897337480,0.23184036,66481.0,66472.0,0.150439]
[1729897337481,0.04484371,66473.0,66472.0,0.150439]
[1729897337738,0.04484371,66473.0,66472.0,0.26286341]
[1729897337739,0.02304146,66473.0,66472.0,0.26286341]
[1729897337954,0.02304146,66473.0,66472.0,0.41330241]
[1729897337955,0.08027521,66473.0,66472.0,0.41330241]
[1729897338168,0.08027521,66473.0,66472.0,0.46575279]
[1729897338384,0.08027521,66473.0,66472.0,0.60813966]
[1729897338598,0.08027521,66473.0,66465.0,0.30091]
[1729897338814,0.03543029,66473.0,66472.0,0.150439]
[1729897339036,0.08028558,66473.0,66472.0,0.150439]
[1729897339454,0.10301283,66473.0,66472.0,0.150439]
[1729897340100,0.08028558,66473.0,66472.0,0.26618813]
[1729897340749,0.08028558,66473.0,66472.0,0.41669194]
[1729897340969,0.0354405,66473.0,66472.0,0.41669194]
[1729897341659,0.01363096,66473.0,66472.0,0.41669194]
[1729897342081,0.03546993,66473.0,66472.0,0.41669194]
[1729897342290,0.01363096,66473.0,66472.0,0.41669194]
[1729897343697,0.00941349,66484.0,66483.0,0.150414]
[1729897343953,0.04491179,66484.0,66483.0,0.70616809]
[1729897344410,0.26975215,66484.0,66483.0,0.150414]
[1729897344639,0.005,66481.0,66471.0,0.005]
[1729897344879,0.04491791,66480.0,66475.0,0.300864]
[1729897345124,0.27475827,66479.0,66465.0,0.40525028]
[1729897345457,0.005,66472.0,66466.0,0.52574136]
[1729897345695,0.04491791,66471.0,66470.0,0.150443]
[1729897345913,0.04491919,66471.0,66470.0,0.30094681]
[1729897346164,0.04491919,66471.0,66465.0,0.41025028]
[1729897346165,0.005,66466.0,66465.0,0.40525028]
[1729897346388,0.005,66466.0,66450.0,0.00538327]
[1729897346389,0.005,66460.0,66458.0,0.15047]
[1729897346614,0.0136555,66459.0,66458.0,0.15047]
[1729897346840,0.03551072,66459.0,66458.0,0.23613703]
[1729897347300,0.04492757,66459.0,66458.0,0.23914616]
[1729897347529,0.04492757,66459.0,66458.0,0.23613703]
[1729897347760,0.03551072,66459.0,66458.0,0.23613703]
[1729897348007,0.03551072,66459.0,66458.0,0.38964996]
[1729897348272,0.005,66470.0,66458.0,0.23617084]
[1729897348512,0.001646,66473.0,66472.0,0.150439]
[1729897348777,0.04662087,66473.0,66472.0,0.150439]
[1729897349064,0.04662087,66473.0,66472.0,0.55568928]
[1729897349462,0.03720524,66473.0,66472.0,0.55568928]
[1729897349688,0.0235355,66473.0,66472.0,0.55568928]
[1729897349924,0.03721644,66473.0,66472.0,0.55568928]
[1729897350151,0.03721895,66473.0,66472.0,0.55568928]
[1729897350359,0.01532694,66473.0,66472.0,0.55568928]
[1729897350861,0.01532694,66473.0,66472.0,0.56568928]
[1729897351078,0.001646,66473.0,66472.0,0.56568928]
[1729897351296,0.001646,66473.0,66472.0,0.83294122]
[1729897351511,0.001646,66473.0,66472.0,1.01424122]
[1729897351736,0.22484036,66491.0,66472.0,1.01424122]
[1729897351737,0.0218931,66483.0,66482.0,0.150416]
[1729897351944,0.22484036,66491.0,66489.0,0.1504]
[1729897352174,0.22484036,66491.0,66490.0,0.30090181]
[1729897352382,0.0136833,66491.0,66490.0,0.33137471]
[1729897352598,0.0136833,66491.0,66487.0,0.300807]
[1729897352599,0.03557688,66491.0,66477.0,0.005]
[1729897352809,0.03557688,66491.0,66474.0,0.63009064]
[1729897352810,0.04998969,66490.0,66489.0,0.150398]
[1729897353037,0.04498969,66490.0,66489.0,0.150398]
[1729897353474,0.03557688,66490.0,66489.0,0.150398]
[1729897354129,0.03557688,66490.0,66489.0,0.30090181]
[1729897354354,0.0136833,66490.0,66489.0,0.39115379]
[1729897354572,0.03557022,66490.0,66489.0,0.39115379]
[1729897354788,0.0136833,66490.0,66489.0,0.39115379]
[1729897356352,0.02780157,66503.0,66501.0,0.150373]
[1729897356353,0.00941224,66502.0,66501.0,0.150373]
[1729897356578,0.03556547,66502.0,66501.0,0.150373]
[1729897357269,0.03556547,66502.0,66501.0,0.15338037]
[1729897357497,0.03556547,66502.0,66501.0,0.30087681]
[1729897357736,0.01367903,66502.0,66501.0,0.30087681]
[1729897359249,0.001644,66509.0,66506.0,0.15036]
[1729897359470,0.001644,66509.0,66501.0,0.45124581]
[1729897359471,0.001644,66509.0,66502.0,0.300742]
[1729897359693,0.001644,66509.0,66450.0,0.13423031]
[1729897359694,0.005,66496.0,66488.0,0.22484036]
[1729897359923,0.005,66493.0,66488.0,0.22484036]
[1729897360138,0.03557604,66492.0,66488.0,0.52564336]
[1729897360347,0.03557742,66491.0,66490.0,0.451194]
[1729897360622,0.005,66501.0,66496.0,0.005]
[1729897360851,0.005,66501.0,66500.0,0.150375]
[1729897361084,0.04060253,66501.0,66500.0,0.150375]